Workbook

Sheet Dashboard
R3: 2017
R4: SEPTIEMBRE | AE4: Empresa - Sector | AF4: Empresa - Sector
F5: Acumulado a: | G5: =R4 -> SEPTIEMBRE | J5: Datos acumulados | L5: Cuota Negocio / Total ASEMPLEO | O5: =empresa_ccaa!L5 -> iEMPRESA | Q5: ¿▲"sin" mi Empresa? | AF5: p.p.
F6: Total | G6: Facturación, € | I6: (a) | J6: =O5 -> iEMPRESA | N6: Cuota de Facturación | O6: ∆ | Q6: (b) | R6: ∆ (a-b) | AF6: Puntos porcentuales
G7: 2016 | H7: 2017 | I7: % i.a. | J7: 2016 | K7: 2017 | L7: % i.a. | M7: 2016 | N7: 2017 | O7: Dif.P.P. | Q7: % i.a. | R7: Dif.P.P. | AE7: Dif. Ritmo | AF7: Importancia Relativa | AI7: Empresa
F8: Nacional | G8: =empresa_ccaa!F12 -> 2256241251 | H8: =empresa_ccaa!G12 -> 2593768218 | I8: =((H8/G8)-1) -> 0.1495970194 | J8: =empresa_ccaa!K12 -> 0 | K8: =empresa_ccaa!L12 -> 0 | L8: =IF(J8>0,((K8/J8)-1),"n.a.") -> n.a. | M8: =J8/G8 -> 0 | N8: =K8/H8 -> 0 | O8: =(N8-M8)*100 -> 0 | Q8: =((H8-K8)/(G8-J8))-1 -> 0.1495970194 | R8: =(I8-Q8)*100 -> 0 | AE8: =IF(L8="n.a.","n.a.",(L8-I8)*100) -> n.a. | AF8: =empresa_ccaa!M12-empresa_ccaa!H12 ->  | AH8: criterio_rank | AI8: peso | AJ8: Comunidad | AK8: % i.a. | AL8: Total_Regional
F9: ANDALUCIA | G9: =empresa_ccaa!F13 -> 216353427.9 | H9: =empresa_ccaa!G13 -> 241175607.5 | I9: =((H9/G9)-1) -> 0.114729773 | J9: =empresa_ccaa!K13 -> 0 | K9: =empresa_ccaa!L13 -> 0 | L9: n.a. | M9: 0 | N9: 0 | O9: =(N9-M9)*100 -> 0 | Q9: =((H9-K9)/(G9-J9))-1 -> 0.114729773 | R9: 0 | AE9: =IF(L9="n.a.","n.a.",(L9-I9)*100) -> n.a. | AF9: =empresa_ccaa!M13-empresa_ccaa!H13 ->  | AH9: =IF(AI9=$AI$27,1,0) -> 1 | AI9: =N9 -> 0 | AJ9: =F9 -> ANDALUCIA | AK9: =L9 -> n.a. | AL9: =I9 -> 0.114729773
F10: ARAGON | G10: =empresa_ccaa!F14 -> 119152154.6 | H10: =empresa_ccaa!G14 -> 148547988.5 | I10: =((H10/G10)-1) -> 0.2467083708 | J10: =empresa_ccaa!K14 -> 0 | K10: =empresa_ccaa!L14 -> 0 | L10: n.a. | M10: 0 | N10: 0 | O10: 0 | Q10: 0.2467083708 | R10: 0 | AE10: n.a. | AF10: =empresa_ccaa!M14-empresa_ccaa!H14 ->  | AH10: =IF(AI10=$AI$27,1,0) -> 1 | AI10: 0 | AJ10: ARAGON | AK10: =L10 -> n.a. | AL10: =I10 -> 0.2467083708
F11: ASTURIAS | G11: =empresa_ccaa!F15 -> 38578525.03 | H11: =empresa_ccaa!G15 -> 52864850.24 | I11: 0.3703180771 | J11: =empresa_ccaa!K15 -> 0 | K11: =empresa_ccaa!L15 -> 0 | L11: n.a. | M11: 0 | N11: 0 | O11: 0 | Q11: 0.3703180771 | R11: 0 | AE11: n.a. | AF11: =empresa_ccaa!M15-empresa_ccaa!H15 ->  | AH11: 1 | AI11: 0 | AJ11: ASTURIAS | AK11: n.a. | AL11: 0.3703180771
F12: BALEARES | G12: =empresa_ccaa!F16 -> 10528008.8 | H12: =empresa_ccaa!G16 -> 13881532.76 | I12: 0.3185335442 | J12: =empresa_ccaa!K16 -> 0 | K12: =empresa_ccaa!L16 -> 0 | L12: n.a. | M12: 0 | N12: 0 | O12: 0 | Q12: 0.3185335442 | R12: 0 | AE12: n.a. | AF12: =empresa_ccaa!M16-empresa_ccaa!H16 ->  | AH12: 1 | AI12: 0 | AJ12: BALEARES | AK12: n.a. | AL12: 0.3185335442
F13: CANARIAS | G13: =empresa_ccaa!F17 -> 44896069.24 | H13: =empresa_ccaa!G17 -> 54099670.3 | I13: 0.2049979256 | J13: =empresa_ccaa!K17 -> 0 | K13: =empresa_ccaa!L17 -> 0 | L13: n.a. | M13: 0 | N13: 0 | O13: 0 | Q13: 0.2049979256 | R13: 0 | AE13: n.a. | AF13: =empresa_ccaa!M17-empresa_ccaa!H17 ->  | AH13: 1 | AI13: 0 | AJ13: CANARIAS | AK13: n.a. | AL13: 0.2049979256
F14: CANTABRIA | G14: =empresa_ccaa!F18 -> 47208652.63 | H14: =empresa_ccaa!G18 -> 60997846.48 | I14: 0.292090392 | J14: =empresa_ccaa!K18 -> 0 | K14: =empresa_ccaa!L18 -> 0 | L14: n.a. | M14: 0 | N14: 0 | O14: 0 | Q14: 0.292090392 | R14: 0 | AE14: n.a. | AF14: =empresa_ccaa!M18-empresa_ccaa!H18 ->  | AH14: 1 | AI14: 0 | AJ14: CANTABRIA | AK14: n.a. | AL14: 0.292090392
F15: CASTILLA-LA MANCHA | G15: =empresa_ccaa!F19 -> 99639961.1 | H15: =empresa_ccaa!G19 -> 111973205.2 | I15: 0.1237780901 | J15: =empresa_ccaa!K19 -> 0 | K15: =empresa_ccaa!L19 -> 0 | L15: n.a. | M15: 0 | N15: 0 | O15: 0 | Q15: 0.1237780901 | R15: 0 | AE15: n.a. | AF15: =empresa_ccaa!M19-empresa_ccaa!H19 ->  | AH15: 1 | AI15: 0 | AJ15: CASTILLA-LA MANCHA | AK15: n.a. | AL15: 0.1237780901
F16: CASTILLA Y LEÓN | G16: =empresa_ccaa!F20 -> 160992167 | H16: =empresa_ccaa!G20 -> 178791167.3 | I16: 0.1105581762 | J16: =empresa_ccaa!K20 -> 0 | K16: =empresa_ccaa!L20 -> 0 | L16: n.a. | M16: 0 | N16: 0 | O16: =(N16-M16)*100 -> 0 | Q16: 0.1105581762 | R16: 0 | AE16: n.a. | AF16: =empresa_ccaa!M20-empresa_ccaa!H20 ->  | AH16: 1 | AI16: 0 | AJ16: CASTILLA Y LEÓN | AK16: n.a. | AL16: 0.1105581762
F17: CATALUÑA | G17: =empresa_ccaa!F21 -> 550367259.7 | H17: =empresa_ccaa!G21 -> 627201091.9 | I17: 0.1396046565 | J17: =empresa_ccaa!K21 -> 0 | K17: =empresa_ccaa!L21 -> 0 | L17: n.a. | M17: 0 | N17: 0 | O17: =(N17-M17)*100 -> 0 | Q17: 0.1396046565 | R17: 0 | AE17: n.a. | AF17: =empresa_ccaa!M21-empresa_ccaa!H21 ->  | AH17: =IF(AI17=$AI$27,1,0) -> 1 | AI17: =N17 -> 0 | AJ17: CATALUÑA | AK17: n.a. | AL17: 0.1396046565
F18: COMUNIDAD VALENCIANA | G18: =empresa_ccaa!F22 -> 168578229.7 | H18: =empresa_ccaa!G22 -> 195202939.7 | I18: 0.1579368228 | J18: =empresa_ccaa!K22 -> 0 | K18: =empresa_ccaa!L22 -> 0 | L18: n.a. | M18: 0 | N18: 0 | O18: =(N18-M18)*100 -> 0 | Q18: 0.1579368228 | R18: 0 | AE18: n.a. | AF18: =empresa_ccaa!M22-empresa_ccaa!H22 ->  | AH18: 1 | AI18: 0 | AJ18: COMUNIDAD VALENCIANA | AK18: n.a. | AL18: 0.1579368228
F19: EXTREMADURA | G19: =empresa_ccaa!F23 -> 13488846.24 | H19: =empresa_ccaa!G23 -> 16410434.45 | I19: 0.2165928914 | J19: =empresa_ccaa!K23 -> 0 | K19: =empresa_ccaa!L23 -> 0 | L19: n.a. | M19: 0 | N19: 0 | O19: 0 | Q19: 0.2165928914 | R19: 0 | AE19: n.a. | AF19: =empresa_ccaa!M23-empresa_ccaa!H23 ->  | AH19: 1 | AI19: 0 | AJ19: EXTREMADURA | AK19: n.a. | AL19: 0.2165928914
F20: GALICIA | G20: =empresa_ccaa!F24 -> 121313207.8 | H20: =empresa_ccaa!G24 -> 136393532.3 | I20: 0.1243090073 | J20: =empresa_ccaa!K24 -> 0 | K20: =empresa_ccaa!L24 -> 0 | L20: n.a. | M20: 0 | N20: 0 | O20: 0 | Q20: 0.1243090073 | R20: 0 | AE20: n.a. | AF20: =empresa_ccaa!M24-empresa_ccaa!H24 ->  | AH20: 1 | AI20: 0 | AJ20: GALICIA | AK20: n.a. | AL20: 0.1243090073
F21: MADRID | G21: =empresa_ccaa!F25 -> 376383464.6 | H21: =empresa_ccaa!G25 -> 411402568.7 | I21: 0.09304102707 | J21: =empresa_ccaa!K25 -> 0 | K21: =empresa_ccaa!L25 -> 0 | L21: n.a. | M21: 0 | N21: 0 | O21: 0 | Q21: 0.09304102707 | R21: 0 | AE21: n.a. | AF21: =empresa_ccaa!M25-empresa_ccaa!H25 ->  | AH21: 1 | AI21: 0 | AJ21: MADRID | AK21: n.a. | AL21: 0.09304102707
F22: MURCIA | G22: =empresa_ccaa!F26 -> 76597298.44 | H22: =empresa_ccaa!G26 -> 98610449.61 | I22: 0.2873880884 | J22: =empresa_ccaa!K26 -> 0 | K22: =empresa_ccaa!L26 -> 0 | L22: n.a. | M22: 0 | N22: 0 | O22: 0 | Q22: 0.2873880884 | R22: 0 | AE22: n.a. | AF22: =empresa_ccaa!M26-empresa_ccaa!H26 ->  | AH22: 1 | AI22: 0 | AJ22: MURCIA | AK22: n.a. | AL22: 0.2873880884
F23: NAVARRA | G23: =empresa_ccaa!F27 -> 71133278.27 | H23: =empresa_ccaa!G27 -> 85812377.11 | I23: 0.2063604995 | J23: =empresa_ccaa!K27 -> 0 | K23: =empresa_ccaa!L27 -> 0 | L23: n.a. | M23: 0 | N23: 0 | O23: 0 | Q23: 0.2063604995 | R23: 0 | AE23: n.a. | AF23: =empresa_ccaa!M27-empresa_ccaa!H27 ->  | AH23: 1 | AI23: 0 | AJ23: NAVARRA | AK23: n.a. | AL23: 0.2063604995
F24: PAIS VASCO | G24: =empresa_ccaa!F28 -> 120174154.1 | H24: =empresa_ccaa!G28 -> 136666705 | I24: 0.1372387513 | J24: =empresa_ccaa!K28 -> 0 | K24: =empresa_ccaa!L28 -> 0 | L24: n.a. | M24: 0 | N24: 0 | O24: 0 | Q24: 0.1372387513 | R24: 0 | AE24: n.a. | AF24: =empresa_ccaa!M28-empresa_ccaa!H28 ->  | AH24: 1 | AI24: 0 | AJ24: PAIS VASCO | AK24: n.a. | AL24: 0.1372387513
F25: RIOJA (LA) | G25: =empresa_ccaa!F29 -> 20856546.33 | H25: =empresa_ccaa!G29 -> 23736250.59 | I25: 0.1380719613 | J25: =empresa_ccaa!K29 -> 0 | K25: =empresa_ccaa!L29 -> 0 | L25: n.a. | M25: 0 | N25: 0 | O25: 0 | Q25: 0.1380719613 | R25: 0 | AE25: n.a. | AF25: =empresa_ccaa!M29-empresa_ccaa!H29 ->  | AH25: 1 | AI25: 0 | AJ25: RIOJA (LA) | AK25: n.a. | AL25: 0.1380719613
AH26: codifico=1 | AI26: máximo
AH27: =DMAX(AH8:AJ25,AI8,AH8:AH25)*1 -> 0 | AI27: =MAX(AI9:AI25) -> 0
O28: =N6 -> Cuota de Facturación | AG28: geo data | AH28: =VLOOKUP(1,AH8:AL25,3,0) -> ANDALUCIA
R29: =N7 -> 2017 | AH29: el dato a buscar debe estar en la primera columna.
G30: % i.a. | K30: % i.a. | AH30: =VLOOKUP(1,AH8:AL25,4,0)*1 -> 
G31: 2017 | K31: 2017 | AH31: =VLOOKUP(1,AH8:AL25,5,0)*1 -> 0.114729773
G32: Total | K32: Empresa | O32: =O5 -> iEMPRESA
R33: Ámbito
F34: Ámbito | G34: =K34 -> Nacional | K34: =O34 -> Nacional | O34: Nacional | R34: Nacional
O38: =AH28 -> ANDALUCIA | R38: CCAA
R39: Líder para la
G40: % i.a. | K40: % i.a. | R40: Empresa
G41: 2017 | K41: 2017
G42: Total | K42: Empresa | O42: =O32 -> iEMPRESA
F44: Ámbito | G44: =K44 -> ANDALUCIA | K44: =O44 -> ANDALUCIA | O44: =O38 -> ANDALUCIA
F48: Fuente: Cifras consolidadas del sector. Valores absolutos 2015-2017 y cifras de evolución de 2016 a la fecha. ASEMPLEO ©.
F49: Nota de Confidencialidad: Este informe comparativo contiene datos redondeados que son ficticeos y serán reemplazados por los que la Empresa introduzca en "empresa_ccaa".

Sheet Ayuda y Version (hidden)
G2: Versión de plantilla: | H2: 2.5

Sheet pBlock (hidden)
B4: Block Test
B5: Info1 | C5: Info2

Sheet pAccel0 (hidden)
A1: Gauge Configuration | O1: Gauge Configuration | Z1: Gauge Configuration | AK1: Gauge Configuration
F2: Decal | T2: Decal | AE2: Decal | AP2: Decal
A3: Title: | B3: =Dashboard!#REF! ->  | F3: 0 | O3: Title: | P3: =pAccel0!B3 ->  | T3: 0 | Z3: Title: | AA3: Empresa | AE3: 0 | AK3: Title: | AL3: CCAA | AP3: 0
A4: Real Value: | B4: =Dashboard!#REF! ->  | O4: Real Value: | P4: =Dashboard!N8 -> 0 | Z4: Real Value: | AA4: =Dashboard!N8 -> 0 | AK4: Real Value: | AL4: =Dashboard!AH27 -> 0
A6: Color bands | O6: Color bands | Z6: Color bands | AK6: Color bands
A7: Red: | B7: 2 | O7: Red: | P7: 2 | Z7: Red: | AA7: 2 | AK7: Red: | AL7: 2
A8: Yellow: | B8: 15 | O8: Yellow: | P8: 15 | Z8: Yellow: | AA8: 15 | AK8: Yellow: | AL8: 15
A9: Green: | B9: 23 | O9: Green: | P9: 23 | Z9: Green: | AA9: 23 | AK9: Green: | AL9: 23
A11: Advanced Parameters | O11: Advanced Parameters | Z11: Advanced Parameters | AK11: Advanced Parameters
B12: Value to 100% | C12: =IF(ISERROR((B4-F3/100)*B27),0,(B4-F3/100)*B27) -> 0 | P12: Value to 100% | Q12: =IF(ISERROR((P4-T3/100)*P27),0,(P4-T3/100)*P27) -> 0 | AA12: Value to 100% | AB12: =IF(ISERROR((AA4-AE3/100)*AA27),0,(AA4-AE3/100)*AA27) -> 0 | AL12: Value to 100% | AM12: =IF(ISERROR((AL4-AP3/100)*AL27),0,(AL4-AP3/100)*AL27) -> 0
B13: Relative value | C13: =IF(C12>100%,102%,IF(C12<0%,-2%,C12))*1.506-0.253 -> -0.253 | P13: Relative value | Q13: =IF(Q12>100%,102%,IF(Q12<0%,-2%,Q12))*1.506-0.253 -> -0.253 | AA13: Relative value | AB13: =IF(AB12>100%,102%,IF(AB12<0%,-2%,AB12))*1.506-0.253 -> -0.253 | AL13: Relative value | AM13: =IF(AM12>100%,102%,IF(AM12<0%,-2%,AM12))*1.506-0.253 -> -0.253
A15: Angle | C15: =C13*PI() -> -0.7948229414 | O15: Angle | Q15: =Q13*PI() -> -0.7948229414 | Z15: Angle | AB15: =AB13*PI() -> -0.7948229414 | AK15: Angle | AM15: =AM13*PI() -> -0.7948229414
A16: x | B16: 0 | C16: =-COS(C15) -> -0.7004111508 | O16: x | P16: 0 | Q16: =-COS(Q15) -> -0.7004111508 | Z16: x | AA16: 0 | AB16: =-COS(AB15) -> -0.7004111508 | AK16: x | AL16: 0 | AM16: =-COS(AM15) -> -0.7004111508
A17: y | B17: 0 | C17: =SIN(C15) -> -0.7137396023 | O17: y | P17: 0 | Q17: =SIN(Q15) -> -0.7137396023 | Z17: y | AA17: 0 | AB17: =SIN(AB15) -> -0.7137396023 | AK17: y | AL17: 0 | AM17: =SIN(AM15) -> -0.7137396023
D19: Value | E19: Label | R19: Value | S19: Label | AC19: Value | AD19: Label | AN19: Value | AO19: Label
C20: 70 | D20: 10 | E20: =B26+F3 -> 4 | Q20: 70 | R20: 10 | S20: =P26+T3 -> 4 | AB20: 70 | AC20: 10 | AD20: =AA26+AE3 -> 4 | AM20: 70 | AN20: 10 | AO20: =AL26+AP3 -> 4
C21: =B7*$C$20/$B$25 -> 3.5 | D21: 10 | E21: =E20+$B$26 -> 8 | Q21: =P7*$C$20/$B$25 -> 3.5 | R21: 10 | S21: =S20+$B$26 -> 8 | AB21: =AA7*$AB$20/$AA$25 -> 3.5 | AC21: 10 | AD21: =AD20+$AA$26 -> 8 | AM21: =AL7*$AM$20/$AL$25 -> 3.5 | AN21: 10 | AO21: =AO20+$AL$26 -> 8
C22: =B8*$C$20/$B$25 -> 26.25 | D22: 10 | E22: 12 | Q22: =P8*$C$20/$B$25 -> 26.25 | R22: 10 | S22: 12 | AB22: =AA8*$AB$20/$AA$25 -> 26.25 | AC22: 10 | AD22: 12 | AM22: =AL8*$AM$20/$AL$25 -> 26.25 | AN22: 10 | AO22: =AO21+$AL$26 -> 12
C23: =B9*$C$20/$B$25 -> 40.25 | D23: 10 | E23: 16 | Q23: =P9*$C$20/$B$25 -> 40.25 | R23: 10 | S23: 16 | AB23: =AA9*$AB$20/$AA$25 -> 40.25 | AC23: 10 | AD23: 16 | AM23: 40.25 | AN23: 10 | AO23: 16
A24: White | C24: 23 | D24: 10 | E24: 20 | O24: White | Q24: 23 | R24: 10 | S24: 20 | Z24: White | AB24: 23 | AC24: 10 | AD24: 20 | AK24: White | AM24: 23 | AN24: 10 | AO24: 20
A25: Total | B25: =SUM(B7:B24) -> 40 | C25: =SUM(C21:C24) -> 93 | D25: 10 | E25: 24 | O25: Total | P25: =SUM(P7:P24) -> 40 | Q25: =SUM(Q21:Q24) -> 93 | R25: 10 | S25: 24 | Z25: Total | AA25: =SUM(AA7:AA24) -> 40 | AB25: =SUM(AB21:AB24) -> 93 | AC25: 10 | AD25: 24 | AK25: Total | AL25: =SUM(AL7:AL24) -> 40 | AM25: =SUM(AM21:AM24) -> 93 | AN25: 10 | AO25: 24
A26: Increment | B26: =B25/10 -> 4 | D26: 10 | E26: 28 | O26: Increment | P26: =P25/10 -> 4 | R26: 10 | S26: 28 | Z26: Increment | AA26: =AA25/10 -> 4 | AC26: 10 | AD26: 28 | AK26: Increment | AL26: =AL25/10 -> 4 | AN26: 10 | AO26: 28
A27: Conversion | B27: =100/B25 -> 2.5 | D27: 10 | E27: 32 | O27: Conversion | P27: =100/P25 -> 2.5 | R27: 10 | S27: 32 | Z27: Conversion | AA27: =100/AA25 -> 2.5 | AC27: 10 | AD27: 32 | AK27: Conversion | AL27: =100/AL25 -> 2.5 | AN27: 10 | AO27: 32
D28: 10 | E28: 36 | R28: 10 | S28: 36 | AC28: 10 | AD28: 36 | AN28: 10 | AO28: 36
D29: 10 | E29: 40 | R29: 10 | S29: 40 | AC29: 10 | AD29: 40 | AN29: 10 | AO29: 40
D30: 33 | E30: =F3 -> 0 | R30: 33 | S30: =T3 -> 0 | AC30: 33 | AD30: =AE3 -> 0 | AN30: 33 | AO30: =AP3 -> 0

Sheet pAccel1 (hidden)
A1: Gauge Configuration | Q1: Gauge Configuration | X1: Gauge Configuration | AE1: Gauge Configuration | AL1: Gauge Configuration | AS1: Gauge Configuration | AZ1: Gauge Configuration | BG1: Gauge Configuration
F2: Decal | V2: Decal | AC2: Decal | AJ2: Decal | AQ2: Decal | AX2: Decal | BE2: Decal | BL2: Decal
A3: Title: | B3: CPDs | F3: 100 | Q3: Title: | R3: Facturación | V3: 100 | X3: Title: | Y3: CPDs | AC3: 100 | AE3: Title: | AF3: Facturación | AJ3: 100 | AL3: Title: | AM3: Facturación | AQ3: 100 | AS3: Title: | AT3: Facturación | AX3: 100 | AZ3: Title: | BA3: Facturación | BE3: 100 | BG3: Title: | BH3: Facturación | BL3: 100
A4: Real Value: | B4: =Dashboard!#REF! ->  | C4: =Dashboard!#REF! ->  | Q4: Real Value: | R4: =Dashboard!#REF! ->  | X4: Real Value: | Y4: =Dashboard!#REF! ->  | AE4: Real Value: | AF4: =Dashboard!#REF! ->  | AL4: Real Value: | AM4: =Dashboard!I8 -> 0.1495970194 | AS4: Real Value: | AT4: =Dashboard!$L$8 -> n.a. | AZ4: Real Value: | BA4: =Dashboard!AH31 -> 0.114729773 | BG4: Real Value: | BH4: =Dashboard!AH30 -> 
A6: Color bands
A7: Red: | B7: -50
A8: Yellow: | B8: 0
A9: Green: | B9: 50
A11: Advanced Parameters | Q11: Advanced Parameters | X11: Advanced Parameters | AE11: Advanced Parameters | AL11: Advanced Parameters | AS11: Advanced Parameters | AZ11: Advanced Parameters | BG11: Advanced Parameters
B12: Value to 100% | C12: =IF(ISERROR((B4-F3/100)*B27),0,(B4-F3/100)*B27) -> 0 | E12: =IF(ISERROR((C4-F3/100)*B27),0,(C4-F3/100)*B27) -> 0 | R12: Value to 100% | S12: =IF(ISERROR((R4-V3/100)*R27),0,(R4-V3/100)*R27) -> 0 | Y12: Value to 100% | Z12: =IF(ISERROR((Y4-AC3/100)*Y27),0,(Y4-AC3/100)*Y27) -> 0 | AF12: Value to 100% | AG12: =IF(ISERROR((AF4-AJ3/100)*AF27),0,(AF4-AJ3/100)*AF27) -> 0 | AM12: Value to 100% | AN12: =IF(ISERROR((AM4-AQ3/100)*AM27),0,(AM4-AQ3/100)*AM27) -> -1.700805961 | AT12: Value to 100% | AU12: =IF(ISERROR((AT4-AX3/100)*AT27),0,(AT4-AX3/100)*AT27) -> 0 | BA12: Value to 100% | BB12: =IF(ISERROR((BA4-BE3/100)*BA27),0,(BA4-BE3/100)*BA27) -> -1.770540454 | BH12: Value to 100% | BI12: =IF(ISERROR((BH4-BL3/100)*BH27),0,(BH4-BL3/100)*BH27) -> 0
B13: Relative value | C13: =IF(B4<-100%,-100%,IF(B4>100%,100%,2*B4/1)) ->  | D13: ojo1, todo en porcentaje, por 2, y con 1 al final en lugar de 100. | E13: =IF(C4<-100%,-100%,IF(C4>100%,100%,2*C4/1)) ->  | I13: Todos los negritas tienen dato 50, en lugar de 100 para que la escala recorra menos. | R13: Relative value | S13: =IF(R4<-100%,-100%,IF(R4>100%,100%,2*R4/1)) ->  | Y13: Relative value | Z13: =IF(Y4<-100%,-100%,IF(Y4>100%,100%,2*Y4/1)) ->  | AF13: Relative value | AG13: =IF(AF4<-100%,-100%,IF(AF4>100%,100%,2*AF4/1)) ->  | AM13: Relative value | AN13: =IF(AM4<-100%,-100%,IF(AM4>100%,100%,2*AM4/1)) -> 0.2991940388 | AT13: Relative value | AU13: =IF(AT4<-100%,-100%,IF(AT4>100%,100%,2*AT4/1)) -> 1 | BA13: Relative value | BB13: =IF(BA4<-100%,-100%,IF(BA4>100%,100%,2*BA4/1)) -> 0.2294595461 | BH13: Relative value | BI13: =IF(BH4<-100%,-100%,IF(BH4>100%,100%,2*BH4/1)) -> 
A15: Angle | C15: =C13*PI()/2 ->  | E15: =E13*PI()/2 ->  | Q15: Angle | S15: =S13*PI()/2 ->  | X15: Angle | Z15: =Z13*PI()/2 ->  | AE15: Angle | AG15: =AG13*PI()/2 ->  | AL15: Angle | AN15: =AN13*PI()/2 -> 0.4699728972 | AS15: Angle | AU15: =AU13*PI()/2 -> 1.570796327 | AZ15: Angle | BB15: =BB13*PI()/2 -> 0.3604342121 | BG15: Angle | BI15: =BI13*PI()/2 -> 
A16: x | B16: 0 | C16: =SIN(C15) ->  | D16: =B16 -> 0 | E16: =SIN(E15) ->  | Q16: x | R16: 0 | S16: =SIN(S15) ->  | X16: x | Y16: 0 | Z16: =SIN(Z15) ->  | AE16: x | AF16: 0 | AG16: =SIN(AG15) ->  | AL16: x | AM16: 0 | AN16: =SIN(AN15) -> 0.4528621212 | AS16: x | AT16: 0 | AU16: =SIN(AU15) -> 1 | AZ16: x | BA16: 0 | BB16: =SIN(BB15) -> 0.3526805778 | BG16: x | BH16: 0 | BI16: =SIN(BI15) -> 
A17: y | B17: 0 | C17: =-COS(C15) ->  | D17: =B17 -> 0 | E17: =-COS(E15) ->  | Q17: y | R17: 0 | S17: =-COS(S15) ->  | X17: y | Y17: 0 | Z17: =-COS(Z15) ->  | AE17: y | AF17: 0 | AG17: =-COS(AG15) ->  | AL17: y | AM17: 0 | AN17: =-COS(AN15) -> -0.8915805624 | AS17: y | AT17: 0 | AU17: =-COS(AU15) -> -6.125742275e-17 | AZ17: y | BA17: 0 | BB17: =-COS(BB15) -> -0.9357437737 | BG17: y | BH17: 0 | BI17: =-COS(BI15) -> 
D19: Value | E19: Label
C20: 50 | D20: 0 | E20: 50
C21: =E21 -> 40 | D21: =D31/D33 -> 5 | E21: =E20+$B$26 -> 40
C22: =E22 -> 30 | D22: =D21 -> 5 | E22: =E21+$B$26 -> 30
C23: 20 | D23: =D22 -> 5 | E23: 20
A24: White | C24: 10 | D24: 5 | E24: 10 | Q24: White | X24: White | AE24: White | AL24: White | AS24: White | AZ24: White | BG24: White
A25: Total | B25: 50 | C25: 0 | D25: 5 | E25: 0 | Q25: Total | R25: 50 | X25: Total | Y25: 50 | AE25: Total | AF25: 50 | AL25: Total | AM25: 50 | AS25: Total | AT25: 50 | AZ25: Total | BA25: 50 | BG25: Total | BH25: 50
A26: Increment | B26: -10 | C26: -10 | D26: 5 | E26: -10 | Q26: Increment | R26: -10 | X26: Increment | Y26: -10 | AE26: Increment | AF26: -10 | AL26: Increment | AM26: -10 | AS26: Increment | AT26: -10 | AZ26: Increment | BA26: -10 | BG26: Increment | BH26: -10
A27: Conversion | B27: =100/B25 -> 2 | C27: -20 | D27: 5 | E27: -20 | Q27: Conversion | R27: =100/R25 -> 2 | X27: Conversion | Y27: =100/Y25 -> 2 | AE27: Conversion | AF27: =100/AF25 -> 2 | AL27: Conversion | AM27: =100/AM25 -> 2 | AS27: Conversion | AT27: =100/AT25 -> 2 | AZ27: Conversion | BA27: =100/BA25 -> 2 | BG27: Conversion | BH27: =100/BH25 -> 2
C28: -30 | D28: 5 | E28: -30
C29: -40 | D29: 5 | E29: -40
C30: -50 | D30: 5 | E30: -50
D31: 50
D33: 10
D35: =SUM(D20:D30) -> 50

Sheet empresa_ccaa
M3: =Dashboard!R3 -> 2017
M4: =Dashboard!R4 -> SEPTIEMBRE
K5: Empresa | L5: =L9 -> iEMPRESA
C9: Facturación, € | F9: ASEMPLEO | G9: ASEMPLEO | K9: Empresa = | L9: iEMPRESA
C10: Dato acumulado a | E10: =M4 -> SEPTIEMBRE | F10: 2016 | G10: 2017 | J10: Facturación | K10: 2016 | L10: 2017
H11: Estructura (%) | J11: Datos acumulados | M11: Estructura (%) | N11: check
F12: =E65 -> 2256241251 | G12: =B65 -> 2593768218 | H12: =G12/G$12 -> 1 | I12: TOTAL | M12: =L12/L$12 ->  | N12: =L12/K12-1 -> 
F13: 216353427.9 | G13: =B66 -> 241175607.5 | H13: =G13/G$12 -> 0.09298271368 | I13: ANDALUCIA | M13: =L13/L$12 -> 
F14: 119152154.6 | G14: 148547988.5 | H14: =G14/G$12 -> 0.05727111139 | I14: ARAGON | M14: =L14/L$12 -> 
F15: 38578525.03 | G15: 52864850.24 | H15: 0.02038148586 | I15: ASTURIAS
F16: 10528008.8 | G16: =B69 -> 13881532.76 | H16: 0.005351878655 | I16: BALEARES
F17: 44896069.24 | G17: 54099670.3 | H17: 0.02085755771 | I17: CANARIAS
F18: 47208652.63 | G18: 60997846.48 | H18: 0.02351707684 | I18: CANTABRIA
F19: 99639961.1 | G19: 111973205.2 | H19: 0.04317008915 | I19: CASTILLA-LA MANCHA
F20: 160992167 | G20: 178791167.3 | H20: 0.06893105024 | I20: CASTILLA Y LEÓN
F21: 550367259.7 | G21: 627201091.9 | H21: 0.2418107708 | I21: CATALUÑA
F22: 168578229.7 | G22: 195202939.7 | H22: 0.0752584361 | I22: COMUNIDAD VALENCIANA
F23: 13488846.24 | G23: 16410434.45 | H23: 0.00632687005 | I23: EXTREMADURA
F24: 121313207.8 | G24: 136393532.3 | H24: 0.05258508889 | I24: GALICIA
F25: 376383464.6 | G25: 411402568.7 | H25: 0.1586119245 | I25: MADRID
F26: 76597298.44 | G26: 98610449.61 | H26: 0.03801821957 | I26: MURCIA
F27: 71133278.27 | G27: 85812377.11 | H27: 0.0330840576 | I27: NAVARRA
F28: 120174154.1 | G28: 136666705 | H28: 0.05269040774 | I28: PAIS VASCO
F29: 20856546.33 | G29: 23736250.59 | H29: 0.009151261252 | I29: RIOJA (LA)
A31: Fuente: Cifras consolidadas del sector. ASEMPLEO ©.
A32: Nota de Confidencialidad: Este informe comparativo se genera con los datos propios de la Empresa.
A60: D03: | D60: D03: | G60: D03 : | H60: Variación Interanual (%)
A61: MES:AGOSTO | B61: ACUMULADO A LA FECHA | D61: =A61 -> MES:AGOSTO | E61: =B61 -> ACUMULADO A LA FECHA | G61: =D61 -> MES:AGOSTO | H61: 2017/2016
B63: Facturación | E63: Facturación | H63: Facturación
I64: check
A65: TOTAL | B65: 2593768218 | D65: TOTAL | E65: 2256241251 | G65: TOTAL | H65: 0.1495970194 | I65: =B65/E65-1 -> 0.1495970194
A66: ANDALUCIA | B66: 241175607.5 | D66: ANDALUCIA | E66: 216353427.9 | G66: ANDALUCIA | H66: 0.114729773 | I66: =B66/E66-1 -> 0.114729773
A67: ARAGON | B67: 148547988.5 | D67: ARAGON | E67: 119152154.6 | G67: ARAGON | H67: 0.2467083708 | I67: 0.2467083708
A68: ASTURIAS | B68: 52864850.24 | D68: ASTURIAS | E68: 38578525.03 | G68: ASTURIAS | H68: 0.3703180771 | I68: 0.3703180771
A69: BALEARES | B69: 13881532.76 | D69: BALEARES | E69: 10528008.8 | G69: BALEARES | H69: 0.3185335442 | I69: 0.3185335442
A70: CANARIAS | B70: 54099670.3 | D70: CANARIAS | E70: 44896069.24 | G70: CANARIAS | H70: 0.2049979256 | I70: 0.2049979256
A71: CANTABRIA | B71: 60997846.48 | D71: CANTABRIA | E71: 47208652.63 | G71: CANTABRIA | H71: 0.292090392 | I71: 0.292090392
A72: CASTILLA-LA MANCHA | B72: 111973205.2 | D72: CASTILLA-LA MANCHA | E72: 99639961.1 | G72: CASTILLA-LA MANCHA | H72: 0.1237780901 | I72: 0.1237780901
A73: CASTILLA Y LEÓN | B73: 178791167.3 | D73: CASTILLA Y LEÓN | E73: 160992167 | G73: CASTILLA Y LEÓN | H73: 0.1105581762 | I73: 0.1105581762
A74: CATALUÑA | B74: 627201091.9 | D74: CATALUÑA | E74: 550367259.7 | G74: CATALUÑA | H74: 0.1396046565 | I74: 0.1396046565
A75: COMUNIDAD VALENCIANA | B75: 195202939.7 | D75: COMUNIDAD VALENCIANA | E75: 168578229.7 | G75: COMUNIDAD VALENCIANA | H75: 0.1579368228 | I75: 0.1579368228
A76: EXTREMADURA | B76: 16410434.45 | D76: EXTREMADURA | E76: 13488846.24 | G76: EXTREMADURA | H76: 0.2165928914 | I76: 0.2165928914
A77: GALICIA | B77: 136393532.3 | D77: GALICIA | E77: 121313207.8 | G77: GALICIA | H77: 0.1243090073 | I77: 0.1243090073
A78: MADRID | B78: 411402568.7 | D78: MADRID | E78: 376383464.6 | G78: MADRID | H78: 0.09304102707 | I78: 0.09304102707
A79: MURCIA | B79: 98610449.61 | D79: MURCIA | E79: 76597298.44 | G79: MURCIA | H79: 0.2873880884 | I79: 0.2873880884
A80: NAVARRA | B80: 85812377.11 | D80: NAVARRA | E80: 71133278.27 | G80: NAVARRA | H80: 0.2063604995 | I80: 0.2063604995
A81: PAIS VASCO | B81: 136666705 | D81: PAIS VASCO | E81: 120174154.1 | G81: PAIS VASCO | H81: 0.1372387513 | I81: 0.1372387513
A82: RIOJA (LA) | B82: 23736250.59 | D82: RIOJA (LA) | E82: 20856546.33 | G82: RIOJA (LA) | H82: 0.1380719613 | I82: 0.1380719613
A83: Ceuta y Melilla | B83: 0 | D83: Ceuta y Melilla | E83: 0 | G83: Ceuta y Melilla | H83: 0
